bitfinex-derivatives/quotes_BTCF0:USTF0_20250324
["timestamp","ask_amount","ask_price","bid_price","bid_amount"]
[1742815999899,0.00668,87614.0,87613.0,0.54370725]
[1742816000098,0.006,87614.0,87613.0,0.54370725]
[1742816000298,0.1201347,87614.0,87613.0,0.54370725]
[1742816000494,0.12073471,87614.0,87613.0,0.54370725]
[1742816000700,0.00660001,87614.0,87613.0,0.54370725]
[1742816000900,0.1201347,87614.0,87613.0,0.55370725]
[1742816001207,0.006,87614.0,87613.0,0.55370725]
[1742816001397,0.00664,87614.0,87613.0,0.55370725]
[1742816001798,0.006,87614.0,87613.0,0.55370725]
[1742816002109,0.1201347,87614.0,87613.0,0.55370725]
[1742816002402,0.006,87614.0,87613.0,0.55370725]
[1742816003099,8e-05,87615.0,87614.0,0.1141347]
[1742816003300,8e-05,87615.0,87614.0,0.6048147]
[1742816003496,0.1141276,87620.0,87619.0,0.1141282]
[1742816003695,0.00060001,87623.0,87622.0,0.1141243]
[1742816003892,0.00060001,87623.0,87622.0,0.8936443]
[1742816003893,0.11532302,87623.0,87622.0,0.8936443]
[1742816004097,0.11472301,87623.0,87622.0,0.8936443]
[1742816004696,0.114123,87623.0,87622.0,0.8936443]
[1742816004898,0.176123,87623.0,87622.0,0.8936443]
[1742816005896,0.181123,87623.0,87622.0,0.8936443]
[1742816007110,0.182123,87623.0,87622.0,0.8936443]
[1742816008104,0.18272301,87623.0,87622.0,0.8936443]
[1742816014911,0.18272301,87623.0,87622.0,0.8936043]
[1742816015602,0.182123,87623.0,87622.0,0.8936043]
[1742816021513,0.068,87623.0,87622.0,0.8936043]
[1742816021719,0.0368,87623.0,87622.0,0.8936043]
[1742816022120,0.150923,87623.0,87622.0,0.8936043]
[1742816024718,0.0368,87623.0,87622.0,0.8936043]
[1742816025311,0.006,87623.0,87622.0,0.8936043]
[1742816025704,0.006,87623.0,87622.0,0.9036043]
[1742816026819,0.005,87623.0,87622.0,0.9036043]
[1742816027024,0.009,87623.0,87622.0,0.9036043]
[1742816027614,0.007,87623.0,87622.0,0.9036043]
[1742816027918,0.00048,87624.0,87623.0,0.114123]
[1742816028223,0.0570555,87633.0,87629.0,0.1141151]
[1742816028427,0.0885557,87632.0,87629.0,0.6059151]
[1742816028619,0.11428505,87630.0,87629.0,0.6065151]
[1742816029322,0.00017125,87630.0,87629.0,0.6065151]
[1742816029718,0.06175125,87630.0,87629.0,0.6065151]
[1742816030223,0.06575125,87630.0,87629.0,0.6151611]
[1742816030727,0.17986505,87630.0,87629.0,0.6151611]
[1742816031109,0.17918505,87630.0,87629.0,0.6151611]
[1742816031421,0.17918505,87630.0,87629.0,0.62919234]
[1742816033620,0.17978506,87630.0,87629.0,0.62919234]
[1742816034125,0.06567126,87630.0,87629.0,0.62919234]
[1742816034316,0.06507125,87630.0,87629.0,0.62919234]
[1742816035921,0.17918505,87630.0,87629.0,0.62919234]
[1742816036120,0.06567126,87630.0,87629.0,0.62919234]
[1742816036415,0.17978506,87630.0,87629.0,0.62919234]
[1742816037022,0.06567126,87630.0,87629.0,0.62919234]
[1742816037419,0.06507125,87630.0,87629.0,0.62919234]
[1742816037619,0.06507125,87630.0,87629.0,0.52851552]
[1742816037931,0.17918505,87630.0,87629.0,0.64367552]
[1742816038428,0.06507125,87630.0,87629.0,0.64367552]
[1742816039323,0.06507125,87630.0,87629.0,0.62915234]
[1742816039527,0.06567126,87630.0,87629.0,0.62915234]
[1742816039827,0.17918505,87630.0,87629.0,0.62915234]
[1742816040222,0.06507125,87630.0,87629.0,0.62915234]
[1742816040624,0.06507125,87630.0,87629.0,0.64367631]
[1742816041528,0.06507125,87630.0,87629.0,0.62915234]
[1742816043136,0.06567126,87630.0,87629.0,0.62915234]
[1742816044735,0.06507125,87630.0,87629.0,0.62915234]
[1742816045132,0.06567126,87630.0,87629.0,0.62915234]
[1742816046519,0.06567126,87630.0,87629.0,0.64367565]
[1742816046824,0.06507125,87630.0,87629.0,0.64367565]
[1742816047528,0.03467125,87630.0,87629.0,0.65898268]
[1742816048230,0.03467125,87630.0,87629.0,0.66898268]
[1742816048532,0.03467125,87630.0,87629.0,0.65367565]
[1742816049330,0.03067125,87630.0,87629.0,0.65367565]
[1742816049834,0.03127126,87630.0,87629.0,0.65367565]
[1742816051528,0.03067125,87630.0,87629.0,0.65367565]
[1742816054628,0.0570543,87634.0,87633.0,0.1141099]
[1742816054828,0.0570543,87634.0,87633.0,0.1247099]
[1742816055040,0.0570543,87634.0,87633.0,0.1873099]
[1742816055334,0.0570543,87634.0,87633.0,0.20183321]
[1742816056336,0.0570543,87634.0,87633.0,0.21727729]
[1742816057931,0.1178543,87634.0,87633.0,0.21727729]
[1742816058135,0.1185343,87634.0,87633.0,0.21727729]
[1742816058835,0.1178543,87634.0,87633.0,0.21727729]
[1742816059242,0.1178543,87634.0,87633.0,0.33235729]
[1742816061039,0.1178543,87634.0,87633.0,0.10316739]
[1742816061245,0.23260591,87634.0,87633.0,0.02512331]
[1742816061543,0.23260591,87634.0,87633.0,0.12923321]
[1742816065042,0.23260591,87634.0,87633.0,0.15923321]
[1742816066335,0.23260591,87634.0,87633.0,0.19223321]
[1742816068234,0.23260591,87634.0,87633.0,0.07812331]
[1742816070737,0.23260591,87634.0,87633.0,0.04512331]
[1742816071747,0.23260591,87634.0,87633.0,0.0306]
[1742816083546,0.23260591,87634.0,87633.0,0.1772099]
[1742816083747,0.23260591,87634.0,87633.0,0.0631]
[1742816102064,0.23260591,87634.0,87633.0,0.1772099]
[1742816104562,0.23260591,87634.0,87633.0,0.0631]
[1742816105266,0.23260591,87634.0,87633.0,0.1772099]
[1742816106267,0.23260591,87634.0,87633.0,0.0631]
[1742816107465,0.23260591,87634.0,87633.0,0.0625]
[1742816107667,0.23260591,87634.0,87633.0,0.06314]
[1742816108061,0.23260591,87634.0,87633.0,0.1772499]
[1742816109759,0.23260591,87634.0,87633.0,0.06314]
[1742816110059,0.23260591,87634.0,87633.0,0.1772499]
[1742816112564,0.20250591,87634.0,87633.0,0.06314]
[1742816112867,0.20250591,87634.0,87633.0,0.1772499]
[1742816113467,0.20250591,87634.0,87633.0,0.06314]
[1742816113668,0.20250591,87634.0,87633.0,0.1772499]
[1742816114278,0.20250591,87634.0,87633.0,0.06314]
[1742816114466,0.20250591,87634.0,87633.0,0.1772499]
[1742816116967,0.14545161,87634.0,87633.0,0.06314]
[1742816117278,0.14545161,87634.0,87633.0,0.0625]
[1742816118981,0.14545161,87634.0,87633.0,0.06318]
[1742816121374,0.14545161,87634.0,87633.0,0.0625]
[1742816130769,0.14545161,87634.0,87633.0,0.0631]
[1742816131571,0.14545161,87634.0,87633.0,0.0691]
[1742816131887,0.14545161,87634.0,87633.0,0.3191]
[1742816132185,0.14545161,87634.0,87633.0,0.3221]
[1742816132975,0.14545161,87634.0,87633.0,0.3191]
[1742816134074,0.14545161,87634.0,87633.0,0.3171]
[1742816134478,0.14545161,87634.0,87633.0,0.3161]
[1742816135088,0.25956021,87634.0,87633.0,0.4292099]
[1742816135286,0.25956021,87634.0,87633.0,0.1792099]
[1742816135474,0.29026021,87634.0,87633.0,0.1792099]
[1742816136379,0.29026021,87634.0,87633.0,0.0651]
[1742816136585,0.29026021,87634.0,87633.0,0.1792099]
[1742816136785,0.29026021,87634.0,87633.0,0.1782099]
[1742816137081,0.29026021,87634.0,87633.0,0.1792099]
[1742816137294,0.29026021,87634.0,87633.0,0.4292099]
[1742816137683,0.29026021,87634.0,87633.0,0.4282099]
[1742816138485,0.29026021,87634.0,87633.0,0.4272099]
[1742816141586,0.29026021,87634.0,87633.0,0.3131]
[1742816154496,0.29026021,87634.0,87633.0,0.4272099]
[1742816155494,0.25956021,87634.0,87633.0,0.4272099]
[1742816157699,0.22886021,87634.0,87633.0,0.4272099]
[1742816160396,0.2286051,87640.0,87637.0,0.0570516]
[1742816160598,0.1153817,87640.0,87639.0,0.1141021]
[1742816160798,0.1145017,87640.0,87639.0,0.3641021]
[1742816160999,0.1153017,87640.0,87639.0,0.4255021]
[1742816161310,0.2286068,87640.0,87639.0,0.4263421]
[1742816161509,0.2294068,87640.0,87639.0,0.4263421]
[1742816173424,0.2294068,87640.0,87639.0,0.6863421]
[1742816173605,0.2286068,87640.0,87639.0,0.6863421]
[1742816175205,0.2294068,87640.0,87639.0,0.6863421]
[1742816177109,0.1153051,87640.0,87639.0,0.6863421]
[1742816177311,0.3608,87659.0,87639.0,0.6863421]
[1742816177312,0.1141643,87653.0,87652.0,0.1140852]
[1742816177502,0.11512431,87653.0,87652.0,0.6151252]
[1742816177701,0.1140843,87653.0,87652.0,0.6151252]
[1742816177904,0.1140843,87653.0,87652.0,0.3862252]
[1742816178097,0.1140843,87653.0,87652.0,0.4184252]
[1742816178510,0.11512431,87653.0,87652.0,0.4184252]
[1742816178904,0.00104001,87653.0,87652.0,0.5284252]
[1742816179105,0.0570314,87671.0,87667.0,0.0570315]
[1742816179304,0.1140618,87670.0,87669.0,0.4748631]
[1742816179507,0.1772218,87670.0,87669.0,0.4762231]
[1742816179709,0.29130867,87670.0,87669.0,0.4762231]
[1742816180208,0.29130867,87670.0,87669.0,0.36216]
[1742816181614,0.29130867,87670.0,87669.0,0.37216]
[1742816182007,0.29130867,87670.0,87669.0,0.49962508]
[1742816183914,0.22950867,87670.0,87669.0,0.49962508]
[1742816185518,0.0004,87688.0,87669.0,1.13636198]
[1742816185711,0.1144384,87688.0,87687.0,0.4748397]
[1742816185905,0.1144384,87688.0,87687.0,1.0065997]
[1742816186307,0.22850315,87688.0,87687.0,0.75521678]
[1742816186508,0.0004,87688.0,87687.0,0.75521678]
[1742816188314,0.1144384,87688.0,87687.0,0.75521678]
[1742816188618,0.1144384,87688.0,87687.0,0.75621678]
[1742816188821,0.114031,87694.0,87693.0,0.1710446]
[1742816189020,0.114031,87694.0,87693.0,0.7975246]
[1742816190919,0.114031,87694.0,87693.0,0.6834953]
[1742816191119,0.144531,87694.0,87693.0,0.4534553]
[1742816191304,0.174931,87694.0,87693.0,0.4534553]
[1742816191909,0.174931,87694.0,87693.0,0.4836553]
[1742816192115,0.144531,87694.0,87693.0,0.4836553]
[1742816192511,0.144531,87694.0,87693.0,0.49710924]
[1742816193620,0.032,87695.0,87693.0,0.49710924]
[1742816193621,0.032,87695.0,87694.0,0.1140306]
[1742816193818,0.032,87695.0,87694.0,0.4198706]
[1742816194022,0.1140293,87695.0,87694.0,0.5198706]
[1742816195521,0.1140245,87699.0,87698.0,0.1140254]
[1742816195726,0.1140245,87699.0,87698.0,0.4557854]
[1742816195937,0.1140245,87699.0,87698.0,0.5508854]
[1742816196116,0.1803245,87699.0,87698.0,0.6655654]
[1742816199509,0.1140245,87699.0,87698.0,0.6655654]
[1742816199713,0.1,87700.0,87699.0,0.1140241]
[1742816199919,0.1,87700.0,87699.0,0.5502641]
[1742816201015,0.2140228,87700.0,87699.0,0.5502641]
[1742816201416,0.2772228,87700.0,87699.0,0.5502641]
[1742816203033,0.2772228,87700.0,87699.0,0.9110641]
[1742816207533,0.1326,87700.0,87699.0,0.9110641]
[1742816207837,0.1,87700.0,87699.0,0.9110641]
[1742816208632,0.2140228,87700.0,87699.0,0.9110641]
[1742816209225,0.2447228,87700.0,87699.0,0.9110641]
[1742816209726,0.2767228,87700.0,87699.0,0.9110641]
[1742816210731,0.2767228,87700.0,87699.0,0.9150641]
[1742816211030,0.1627,87700.0,87699.0,0.9180641]
[1742816213930,0.2767228,87700.0,87699.0,1.0326641]
[1742816214333,0.1627,87700.0,87699.0,1.0326641]
[1742816216536,0.1627,87700.0,87699.0,0.9682641]
[1742816216725,0.1627,87700.0,87699.0,1.0007641]
[1742816216929,0.1627,87700.0,87699.0,1.0339641]
[1742816217725,0.2767228,87700.0,87699.0,0.9193641]
[1742816218034,0.75154853,87700.0,87699.0,0.00884]
[1742816219130,0.75154853,87700.0,87699.0,0.1228641]
[1742816219525,0.75154853,87700.0,87699.0,0.1208641]
[1742816219726,0.75154853,87700.0,87699.0,0.00684]
[1742816219927,0.75154853,87700.0,87699.0,0.1208641]
[1742816220129,0.75154853,87700.0,87699.0,0.1178641]
[1742816220541,0.39074853,87700.0,87699.0,0.1178641]
[1742816220734,0.39074853,87700.0,87699.0,0.1510641]
[1742816220936,0.39074853,87700.0,87699.0,0.1500641]
[1742816221332,0.39074853,87700.0,87699.0,0.1490641]
[1742816223645,0.39074853,87700.0,87699.0,0.1815641]
[1742816229246,0.39074853,87700.0,87699.0,0.2815641]
[1742816234957,0.39074853,87700.0,87699.0,0.13504]
[1742816235541,0.39074853,87700.0,87699.0,0.2490641]
[1742816237248,0.39074853,87700.0,87699.0,0.2821641]
[1742816238261,0.39074853,87700.0,87699.0,0.16814]
[1742816238554,0.39074853,87700.0,87699.0,0.1821641]
[1742816238757,0.39074853,87700.0,87699.0,0.4221641]
[1742816239259,0.39074853,87700.0,87699.0,0.4523641]
[1742816259265,0.39079609,87700.0,87699.0,0.4523641]
[1742816270083,0.35879609,87700.0,87699.0,0.4523641]
[1742816270684,0.39009609,87700.0,87699.0,0.4523641]
[1742816270995,0.32809609,87700.0,87699.0,0.4523641]
[1742816271573,0.36069609,87700.0,87699.0,0.4523641]
[1742816272280,0.36069609,87700.0,87699.0,0.9631641]
[1742816272468,0.20462487,87706.0,87700.0,0.057011]
[1742816272671,0.1139987,87719.0,87717.0,0.1140007]
[1742816272672,0.40973037,87718.0,87717.0,0.1140007]
[1742816272885,0.44233037,87718.0,87717.0,0.3626]
[1742816273085,0.47553037,87718.0,87717.0,0.3626]
[1742816273378,0.5895327,87718.0,87717.0,0.3626]
[1742816276286,0.35080333,87718.0,87717.0,0.3626]
[1742816277392,0.1140098,87710.0,87709.0,0.00017105]
[1742816277689,0.11524981,87710.0,87709.0,0.00137105]
[1742816278188,0.26095214,87710.0,87709.0,0.00137105]
[1742816281492,0.26095214,87710.0,87709.0,0.11538215]
[1742816281790,0.22925214,87710.0,87709.0,0.11538215]
[1742816281988,0.11524234,87710.0,87709.0,0.11538215]
[1742816282290,0.11524234,87710.0,87709.0,0.41028215]
[1742816282492,0.11400233,87710.0,87709.0,0.41028215]
[1742816284288,8e-05,87711.0,87710.0,0.1140098]
[1742816284480,0.0570001,87718.0,87717.0,0.1140007]
[1742816284676,0.0570001,87718.0,87717.0,0.1152407]
[1742816284877,0.17221284,87718.0,87717.0,0.3752407]
[1742816285079,0.17221284,87718.0,87717.0,0.1152407]
[1742816285284,0.20291284,87718.0,87717.0,0.3452407]
[1742816285597,0.20291284,87718.0,87717.0,0.1152407]
[1742816286089,0.20291284,87718.0,87717.0,0.39789392]
[1742816286291,0.20291284,87718.0,87717.0,0.12789392]
[1742816286597,0.20291284,87718.0,87717.0,0.39789392]
[1742816288784,0.17221284,87718.0,87717.0,0.39789392]
[1742816289094,0.11521274,87718.0,87717.0,0.39789392]
[1742816289297,0.11401273,87718.0,87717.0,0.39789392]
[1742816289699,0.0569971,87722.0,87719.0,0.1139981]
[1742816289993,0.0883952,87725.0,87719.0,0.1151981]
[1742816290193,0.0883952,87725.0,87719.0,0.3551981]
[1742816290391,0.11439973,87720.0,87719.0,0.3551981]
[1742816290893,0.11567973,87720.0,87719.0,0.3551981]
[1742816291090,0.11563974,87720.0,87719.0,0.3551981]
[1742816292089,0.11439973,87720.0,87719.0,0.3551981]
[1742816292290,0.1471908,87726.0,87725.0,0.1139903]
[1742816292490,0.1471908,87726.0,87725.0,0.4499103]
[1742816292998,0.26119053,87726.0,87725.0,0.4499103]
[1742816293394,0.26118873,87726.0,87725.0,0.4499103]
[1742816293591,0.11399973,87726.0,87725.0,0.8107103]
[1742816294092,8e-05,87727.0,87726.0,0.113989]
[1742816294293,0.0004,87736.0,87735.0,0.1139773]
[1742816294502,0.0004,87736.0,87735.0,0.1156173]
[1742816294503,0.1713668,87736.0,87735.0,0.1156173]
[1742816294894,0.0004,87752.0,87749.0,0.1139565]
[1742816295090,0.0569812,87748.0,87747.0,0.5891217]
[1742816295294,0.0569812,87748.0,87747.0,0.47676]
[1742816295492,0.1216812,87748.0,87747.0,0.0016]
[1742816295700,0.23566014,87748.0,87747.0,0.0016]
[1742816295899,0.113976,87736.0,87735.0,0.3608]
[1742816296094,0.113976,87736.0,87735.0,0.37471405]
[1742816296489,0.113976,87736.0,87735.0,0.4763373]
[1742816296702,0.22793936,87736.0,87735.0,0.4763373]
[1742816297000,0.29193936,87736.0,87735.0,0.4763373]
[1742816297209,0.29193936,87736.0,87735.0,0.4863373]
[1742816298108,0.25943936,87736.0,87735.0,0.4863373]
[1742816298308,0.11396336,87736.0,87735.0,0.49497108]
[1742816298808,0.1139752,87737.0,87736.0,0.113976]
[1742816299002,0.1139752,87737.0,87736.0,0.375576]
[1742816299200,0.0303,87738.0,87737.0,0.1139747]
[1742816299406,0.0303,87738.0,87737.0,0.1155347]
[1742816299603,0.1140521,87739.0,87738.0,0.1139734]
[1742816299790,0.1140521,87739.0,87738.0,0.1255334]
[1742816300702,0.1743721,87739.0,87738.0,0.1255334]
[1742816300895,0.1743721,87739.0,87738.0,0.2398534]
[1742816301994,0.1743721,87739.0,87738.0,0.2708534]
[1742816302207,0.1743721,87739.0,87738.0,0.3031534]
[1742816303706,0.1743721,87739.0,87738.0,0.2212334]
[1742816303908,0.1743721,87739.0,87738.0,0.3355534]
[1742816304415,0.0303,87739.0,87738.0,0.3355534]
[1742816305695,0.1442721,87739.0,87738.0,0.3355534]
[1742816306408,0.1756721,87739.0,87738.0,0.3355534]
[1742816310706,0.0617,87739.0,87738.0,0.3355534]
[1742816310912,0.1756721,87739.0,87738.0,0.3355534]
[1742816311119,0.0617,87739.0,87738.0,0.3355534]
[1742816312516,0.1756721,87739.0,87738.0,0.3355534]
[1742816313608,0.1756721,87739.0,87738.0,0.3355134]
[1742816313911,0.28964715,87739.0,87738.0,0.00156]
[1742816314412,0.28964715,87739.0,87735.0,0.5508]
[1742816314413,0.113976,87736.0,87735.0,0.5508]
[1742816314712,0.114616,87736.0,87735.0,0.19116]
[1742816315012,0.114616,87736.0,87735.0,0.19]
[1742816315013,0.175216,87736.0,87735.0,0.19]
[1742816315219,0.28919105,87736.0,87735.0,0.19]
[1742816316515,0.28919105,87736.0,87735.0,0.19112]
[1742816316814,0.28919105,87736.0,87735.0,0.19]
[1742816317305,0.28919105,87736.0,87735.0,0.19112]
[1742816319607,0.40347105,87736.0,87735.0,0.19112]
[1742816320514,0.28919105,87736.0,87735.0,0.31790039]
[1742816321219,0.28919105,87736.0,87735.0,0.38370039]
[1742816322122,0.14501505,87736.0,87735.0,0.60370039]
[1742816322322,0.11461505,87736.0,87735.0,0.60370039]
[1742816322517,0.11397505,87736.0,87735.0,0.60370039]
[1742816322918,0.113976,87736.0,87735.0,0.54671169]
[1742816323216,0.11457601,87736.0,87735.0,0.54671169]
[1742816323419,0.17847601,87736.0,87735.0,0.54671169]
[1742816323812,0.29245495,87736.0,87735.0,0.54671169]
[1742816325020,0.26165495,87736.0,87735.0,0.54671169]
[1742816325422,0.11457895,87736.0,87735.0,0.66095169]
[1742816325619,8e-05,87737.0,87736.0,0.113976]
[1742816325815,8e-05,87737.0,87736.0,0.375096]
[1742816326018,8e-05,87737.0,87736.0,0.439096]
[1742816326621,0.0302,87742.0,87741.0,0.1139695]
[1742816326919,0.0302,87742.0,87741.0,0.4759295]
[1742816327231,0.0302,87742.0,87741.0,0.5399295]
[1742816327431,0.25814584,87742.0,87741.0,0.5399295]
[1742816327621,0.14529765,87742.0,87741.0,0.5399295]
[1742816328330,0.14417764,87742.0,87741.0,0.5399295]
[1742816328529,0.25814584,87742.0,87741.0,0.5399295]
[1742816328729,0.25926585,87742.0,87741.0,0.5399295]
[1742816329131,0.29026585,87742.0,87741.0,0.5399295]
[1742816330138,0.14529765,87742.0,87741.0,0.5399295]
[1742816331536,0.14529765,87742.0,87741.0,0.7899295]
[1742816331746,0.14417764,87742.0,87741.0,0.7899295]
[1742816332039,0.25814584,87742.0,87741.0,0.7899295]
[1742816332246,0.14529765,87742.0,87741.0,0.7899295]
[1742816332542,0.14529765,87742.0,87741.0,0.8209295]
[1742816333135,0.11509765,87742.0,87741.0,0.8209295]
[1742816333431,0.11397764,87742.0,87741.0,0.8209295]
[1742816333937,8e-05,87743.0,87742.0,0.1139682]
[1742816334132,0.11405115,87743.0,87742.0,0.1151682]
[1742816334343,0.11525116,87743.0,87742.0,0.1805682]
[1742816334535,0.00128001,87743.0,87742.0,0.1805682]
[1742816334737,0.25981676,87743.0,87742.0,0.1805682]
[1742816335146,0.14584986,87743.0,87742.0,0.1805682]
[1742816335545,0.11524986,87743.0,87742.0,0.1805682]
[1742816336240,0.14584986,87743.0,87742.0,0.1805682]
[1742816336446,0.14584986,87743.0,87742.0,0.1905682]
[1742816336844,0.25981676,87743.0,87742.0,0.1905682]
[1742816337241,0.14584986,87743.0,87742.0,0.1905682]
[1742816337440,0.03188001,87743.0,87742.0,0.1905682]
[1742816337648,0.0306,87743.0,87742.0,0.1905682]
[1742816338331,0.03172001,87743.0,87742.0,0.1905682]
[1742816338744,0.1445669,87743.0,87742.0,0.1905682]
[1742816338939,0.29215676,87743.0,87742.0,0.1905682]
[1742816339139,0.29171675,87743.0,87742.0,0.1905682]
[1742816345055,0.29171675,87743.0,87742.0,0.1583682]
[1742816345743,0.29171675,87743.0,87742.0,0.1884682]
[1742816346355,0.29171675,87743.0,87742.0,0.0112]
[1742816346560,0.29171675,87743.0,87742.0,0.1151682]
[1742816346853,0.29171675,87743.0,87742.0,0.1765682]
[1742816348158,0.29171675,87743.0,87742.0,0.0626]
[1742816351859,0.29171675,87743.0,87742.0,0.1765682]
[1742816352048,0.29171675,87743.0,87742.0,0.4165682]
[1742816352449,0.29171675,87743.0,87742.0,0.1765682]
[1742816355161,0.29171675,87743.0,87742.0,0.0626]
[1742816355663,0.29171675,87743.0,87742.0,0.0325]
[1742816355857,0.29171675,87743.0,87742.0,0.1464682]
[1742816356268,0.29171675,87743.0,87742.0,0.0325]
[1742816356450,0.29171675,87743.0,87742.0,0.0012]
[1742816357761,0.30376309,87743.0,87742.0,0.0012]
[1742816359568,0.17774985,87743.0,87742.0,0.6051682]
[1742816359863,0.17774985,87743.0,87742.0,0.4388682]
[1742816359864,0.22793675,87743.0,87742.0,0.4388682]
[1742816360263,0.22905676,87743.0,87742.0,0.4388682]
[1742816361059,0.00112001,87743.0,87742.0,0.4388682]
[1742816361261,0.1139659,87744.0,87743.0,0.0569834]
[1742816361461,0.1140459,87744.0,87743.0,0.3181034]
[1742816361771,0.1139659,87744.0,87743.0,0.3814034]
[1742816365558,0.17928591,87744.0,87743.0,0.3814034]
[1742816365765,0.11508591,87744.0,87743.0,0.3814034]
[1742816365959,0.1139659,87744.0,87743.0,0.3814034]
[1742816366169,0.11508591,87744.0,87743.0,0.3814034]
[1742816367367,0.1139592,87749.0,87746.0,0.0569815]
[1742816367563,0.1723787,87749.0,87748.0,0.1139604]
[1742816367758,0.28634725,87749.0,87748.0,0.3754404]
[1742816367959,0.28634725,87749.0,87748.0,0.4390404]
[1742816369871,0.28634725,87749.0,87748.0,0.5531604]
[1742816371671,0.28634725,87749.0,87748.0,0.2931604]
[1742816373164,0.28634725,87749.0,87748.0,0.1790404]
[1742816373364,0.28634725,87749.0,87748.0,0.2931604]
[1742816376272,0.28634725,87749.0,87748.0,0.5531604]
[1742816377566,0.28634725,87749.0,87748.0,0.5845604]
[1742816378774,0.28634725,87749.0,87748.0,0.4704404]
[1742816378972,0.28634725,87749.0,87748.0,0.5845204]
[1742816379179,0.28634725,87749.0,87748.0,0.3245204]
[1742816379570,0.28634725,87749.0,87748.0,0.6853204]
[1742816380771,0.28634725,87749.0,87748.0,0.3245204]
[1742816380972,0.28634725,87749.0,87748.0,0.6853204]
[1742816381283,0.28634725,87749.0,87748.0,0.6953204]
[1742816382976,0.28634725,87749.0,87748.0,0.6853204]
[1742816385181,0.28634725,87749.0,87748.0,0.53996]
[1742816385383,0.28634725,87749.0,87748.0,0.6539204]
[1742816392277,0.28634725,87749.0,87748.0,0.6229204]
[1742816392589,0.28634725,87749.0,87748.0,0.39488]
[1742816395585,0.28634725,87749.0,87748.0,0.36228]
[1742816396487,0.34984725,87749.0,87748.0,0.36228]
[1742816396986,0.34984725,87749.0,87748.0,0.4762404]
[1742816397174,0.34984725,87749.0,87748.0,0.5408404]
[1742816403582,0.34984725,87749.0,87748.0,0.42688]
[1742816404478,0.34984725,87749.0,87748.0,0.06608]
[1742816406192,0.71064725,87749.0,87748.0,0.06608]
[1742816406879,0.71064725,87749.0,87748.0,0.1800404]
[1742816411585,0.71064725,87749.0,87748.0,0.06608]
[1742816412791,0.1139734,87738.0,87730.0,0.3608]
[1742816412987,0.4762534,87738.0,87737.0,0.20626386]
[1742816413196,0.5719534,87738.0,87737.0,0.20626386]
[1742816413599,0.68591546,87738.0,87737.0,0.20626386]
[1742816414185,0.68591546,87738.0,87737.0,0.00144]
[1742816414385,0.1139786,87734.0,87733.0,0.20482386]
[1742816414586,0.1154986,87734.0,87733.0,0.20634386]
[1742816414782,0.1803986,87734.0,87733.0,0.20634386]
[1742816414993,0.19258852,87734.0,87733.0,0.20634386]
[1742816415295,0.30656486,87734.0,87733.0,0.20634386]
[1742816418588,0.30656486,87734.0,87733.0,0.00152]
[1742816418790,0.1139851,87729.0,87728.0,0.0634]
[1742816418989,0.4762651,87729.0,87728.0,0.06488]
[1742816419198,0.5419651,87729.0,87728.0,0.0634]
[1742816419399,0.1811651,87729.0,87728.0,0.06492]
[1742816419595,0.29514664,87729.0,87728.0,0.06492]
[1742816419790,0.65594664,87729.0,87728.0,0.06492]
[1742816420198,0.65594664,87729.0,87728.0,0.0634]
[1742816420399,0.29514664,87729.0,87728.0,0.06484]
[1742816428298,0.65594664,87729.0,87728.0,0.06484]
[1742816429498,0.65594664,87729.0,87728.0,0.0634]
[1742816430309,0.65594664,87729.0,87728.0,0.06492]
[1742816430995,0.65594664,87729.0,87728.0,0.1789064]
[1742816431195,0.65594664,87729.0,87728.0,0.06492]
[1742816432204,0.29514664,87729.0,87728.0,0.06492]
[1742816432513,0.65594664,87729.0,87728.0,0.06492]
[1742816432706,26.22888,88247.0,87728.0,0.06492]
[1742816432707,0.0569819,87746.0,87736.0,0.1709626]
[1742816432904,0.2279461,87739.0,87738.0,0.1139734]
[1742816433103,0.1139734,87738.0,87737.0,0.0951]
[1742816433308,0.1797734,87738.0,87737.0,0.09702]
[1742816434107,0.29374974,87738.0,87737.0,0.09702]
[1742816440409,0.65454974,87738.0,87737.0,0.09702]
[1742816442106,0.1139864,87728.0,87721.0,0.11396]
[1742816442405,0.4761064,87728.0,87727.0,0.00149105]
[1742816442610,0.4761064,87728.0,87727.0,0.00017105]
[1742816442814,0.65209574,87728.0,87727.0,0.00149105]
[1742816443121,0.65209574,87728.0,87727.0,0.00017105]
[1742816443321,0.68299574,87728.0,87727.0,0.00117105]
[1742816443617,0.68299574,87728.0,87727.0,0.00349105]
[1742816444521,0.68299574,87728.0,87727.0,0.00217105]
[1742816444822,0.68299574,87728.0,87727.0,0.00349105]
[1742816445023,0.69516173,87728.0,87727.0,0.00217105]
[1742816445224,0.69516173,87728.0,87727.0,0.00349105]
[1742816445923,0.69516173,87728.0,87727.0,0.00217105]
[1742816446419,0.69516173,87728.0,87727.0,0.03247105]
[1742816446626,0.69516173,87728.0,87727.0,0.03147105]
[1742816447421,0.69516173,87728.0,87727.0,0.03279105]
[1742816447620,0.69516173,87728.0,87727.0,0.03147105]
[1742816449817,0.69516173,87728.0,87727.0,0.00017105]
[1742816450625,0.69516173,87728.0,87727.0,0.03067105]
[1742816457017,0.69516173,87728.0,87718.0,0.0302]
[1742816457018,0.0569975,87722.0,87718.0,0.0302]
[1742816457222,0.1709952,87720.0,87719.0,0.0323]
[1742816457427,0.5331152,87720.0,87719.0,0.03362]
[1742816457624,0.5976152,87720.0,87719.0,0.03362]
[1742816457926,0.5976152,87720.0,87719.0,0.04586957]
[1742816457927,0.71161493,87720.0,87719.0,0.04586957]
[1742816458724,0.71161493,87720.0,87719.0,0.03362]
[1742816458923,0.71161493,87720.0,87719.0,0.0323]
[1742816459917,0.35081493,87720.0,87719.0,0.0343]
[1742816460126,0.71161493,87720.0,87719.0,0.03562]
[1742816460326,0.71161493,87720.0,87719.0,0.0666]
[1742816460934,0.71161493,87720.0,87719.0,0.0676]
[1742816461533,0.71161493,87720.0,87719.0,0.0666]
[1742816462225,0.71161493,87720.0,87719.0,0.0646]
[1742816464229,0.35081493,87720.0,87719.0,0.0646]
[1742816464423,0.71161493,87720.0,87719.0,0.1799181]
[1742816464627,0.71161493,87720.0,87719.0,0.06592]
[1742816465727,0.71161493,87720.0,87719.0,0.0646]
[1742816466237,0.82549493,87720.0,87719.0,0.066]
[1742816467442,0.82549493,87720.0,87719.0,0.0646]
[1742816468138,0.82549493,87720.0,87719.0,0.06596]
[1742816468338,0.82549493,87720.0,87719.0,0.0646]
[1742816469145,0.82549493,87720.0,87719.0,0.0323]
[1742816469344,0.82549493,87720.0,87715.0,0.0626]
[1742816469345,0.114002,87716.0,87715.0,0.0626]
[1742816469546,0.11460201,87716.0,87715.0,0.0626]
[1742816469852,0.17840201,87716.0,87715.0,0.0626]
[1742816470144,0.29240694,87716.0,87715.0,0.0826]
[1742816470543,0.29240694,87716.0,87715.0,0.0836]
[1742816470845,0.40628694,87716.0,87715.0,0.0836]